[Event "Titled Tuesday Blitz May 2 Early 2023"]
[White "Buchenau, Frank"]
[Black "Eggink, Ryszard"]
[WhiteFideId "4604350"]
[BlackFideId "1125869"]
[WhiteElo "2157"]
[BlackElo "2283"]
[Result "1/2-1/2"]
[Round "08"]
[TimeControl "180+2"]
[Date "2023.05.02"]
[WhiteClock "0:00:02"]
[BlackClock "0:00:05"]

1. e4 {[%clk 0:03:00]}  c5 {[%clk 0:02:59]} 2. Nf3 {[%clk 0:03:00]}  d6 {[%clk 0:03:00]} 3. Bb5+ {[%clk 0:02:58]}  Bd7 {[%clk 0:02:59]} 4. Bxd7+ {[%clk 0:02:58]}  Qxd7 {[%clk 0:02:56]} 5. c4 {[%clk 0:02:58]}  Nc6 {[%clk 0:02:56]} 6. Nc3 {[%clk 0:02:56]}  Nf6 {[%clk 0:02:56]} 7. d4 {[%clk 0:02:56]}  Qg4 {[%clk 0:02:43]} 8. d5 {[%clk 0:02:45]}  Nd4 {[%clk 0:02:33]} 9. Nxd4 {[%clk 0:02:44]}  Qxd1+ {[%clk 0:02:26]} 10. Kxd1 {[%clk 0:02:31]}  cxd4 {[%clk 0:02:25]} 11. Nb5 {[%clk 0:02:31]}  Rc8 {[%clk 0:02:09]} 12. b3 {[%clk 0:02:13]}  Nxe4 {[%clk 0:01:51]} 13. Ke2 {[%clk 0:01:48]}  Nc3+ {[%clk 0:01:18]} 14. Nxc3 {[%clk 0:01:47]}  dxc3 {[%clk 0:01:19]} 15. Be3 {[%clk 0:01:43]}  g6 {[%clk 0:01:10]} 16. Bd4 {[%clk 0:01:37]}  Rg8 {[%clk 0:01:10]} 17. Bxa7 {[%clk 0:01:22]}  Bg7 {[%clk 0:01:08]} 18. a4 {[%clk 0:01:10]}  e6 {[%clk 0:00:58]} 19. dxe6 {[%clk 0:01:06]}  fxe6 {[%clk 0:00:59]} 20. Rad1 {[%clk 0:01:00]}  Ke7 {[%clk 0:00:56]} 21. Bd4 {[%clk 0:00:56]}  Bxd4 {[%clk 0:00:48]} 22. Rxd4 {[%clk 0:00:55]}  Rgd8 {[%clk 0:00:37]} 23. Rc1 {[%clk 0:00:53]}  d5 {[%clk 0:00:25]} 24. Rxc3 {[%clk 0:00:52]}  e5 {[%clk 0:00:25]} 25. Re3 {[%clk 0:00:47]}  Ke6 {[%clk 0:00:19]} 26. f4 {[%clk 0:00:40]}  dxc4 {[%clk 0:00:07]} 27. Rxe5+ {[%clk 0:00:39]}  Kf6 {[%clk 0:00:06]} 28. Rxd8 {[%clk 0:00:33]}  Rxd8 {[%clk 0:00:07]} 29. bxc4 {[%clk 0:00:33]}  Rd4 {[%clk 0:00:08]} 30. Rb5 {[%clk 0:00:21]}  Rxc4 {[%clk 0:00:08]} 31. a5 {[%clk 0:00:16]}  Rxf4 {[%clk 0:00:05]} 32. Rb6+ {[%clk 0:00:14]}  Kf5 {[%clk 0:00:04]} 33. Rxb7 {[%clk 0:00:14]}  Ra4 {[%clk 0:00:04]} 34. Rb5+ {[%clk 0:00:09]}  Ke4 {[%clk 0:00:04]} 35. Kd2 {[%clk 0:00:07]}  Ra2+ {[%clk 0:00:04]} 36. Kc3 {[%clk 0:00:07]}  Rxg2 {[%clk 0:00:04]} 37. Kb3 {[%clk 0:00:03]}  Rg1 {[%clk 0:00:02]} 38. a6 {[%clk 0:00:02]}  Ra1 {[%clk 0:00:02]} 39. Rb4+ {[%clk 0:00:01]}  Kd5 {[%clk 0:00:02]} 40. Ra4 {[%clk 0:00:02]}  Rxa4 {[%clk 0:00:03]} 41. Kxa4 {[%clk 0:00:02]}  Kc6 {[%clk 0:00:03]} 42. Ka5 {[%clk 0:00:02]}  g5 {[%clk 0:00:03]} 43. Kb4 {[%clk 0:00:02]}  h5 {[%clk 0:00:03]} 44. Kc4 {[%clk 0:00:02]}  g4 {[%clk 0:00:04]} 45. Kd4 {[%clk 0:00:03]}  h4 {[%clk 0:00:04]} 46. Ke4 {[%clk 0:00:03]}  Kb6 {[%clk 0:00:04]} 47. Kf4 {[%clk 0:00:03]}  g3 {[%clk 0:00:04]} 48. hxg3 {[%clk 0:00:02]}  hxg3 {[%clk 0:00:05]} 49. Kxg3 {[%clk 0:00:02]}  Kxa6 {[%clk 0:00:05]} 1/2-1/2


[Site "https://www.chess.com"]

[Event "Titled Tuesday Blitz May 2 Early 2023"]
[White "Eidelman, Gabriel"]
[Black "Smith, Shreyas"]
[WhiteFideId "30910544"]
[BlackFideId "7400713"]
[WhiteElo "2209"]
[BlackElo "2151"]
[Result "1-0"]
[Round "08"]
[TimeControl "180+2"]
[Date "2023.05.02"]
[WhiteClock "0:00:13"]
[BlackClock "0:00:12"]

1. Nf3 {[%clk 0:03:00]}  d5 {[%clk 0:02:57]} 2. g3 {[%clk 0:03:01]}  e6 {[%clk 0:02:53]} 3. Bg2 {[%clk 0:03:01]}  g6 {[%clk 0:02:52]} 4. O-O {[%clk 0:03:00]}  Bg7 {[%clk 0:02:53]} 5. d4 {[%clk 0:02:57]}  Ne7 {[%clk 0:02:54]} 6. Nc3 {[%clk 0:02:57]}  O-O {[%clk 0:02:54]} 7. e4 {[%clk 0:02:55]}  b6 {[%clk 0:02:43]} 8. e5 {[%clk 0:02:51]}  h6 {[%clk 0:02:37]} 9. h4 {[%clk 0:02:30]}  Ba6 {[%clk 0:02:35]} 10. Re1 {[%clk 0:02:22]}  c5 {[%clk 0:02:36]} 11. Bf4 {[%clk 0:02:13]}  Nbc6 {[%clk 0:02:33]} 12. Qd2 {[%clk 0:01:51]}  Nf5 {[%clk 0:02:26]} 13. dxc5 {[%clk 0:01:29]}  bxc5 {[%clk 0:02:22]} 14. Na4 {[%clk 0:01:22]}  c4 {[%clk 0:01:56]} 15. Nc3 {[%clk 0:00:55]}  Kh7 {[%clk 0:01:55]} 16. Ne2 {[%clk 0:00:52]}  Qb6 {[%clk 0:01:51]} 17. c3 {[%clk 0:00:51]}  Rab8 {[%clk 0:01:49]} 18. Rab1 {[%clk 0:00:52]}  Qa5 {[%clk 0:01:43]} 19. a3 {[%clk 0:00:51]}  Rb7 {[%clk 0:01:17]} 20. g4 {[%clk 0:00:47]}  Nfe7 {[%clk 0:01:11]} 21. Ned4 {[%clk 0:00:34]}  Rfb8 {[%clk 0:01:08]} 22. Re2 {[%clk 0:00:30]}  Bb5 {[%clk 0:00:56]} 23. Qe3 {[%clk 0:00:27]}  Ba4 {[%clk 0:00:51]} 24. h5 {[%clk 0:00:23]}  Bb3 {[%clk 0:00:36]} 25. g5 {[%clk 0:00:18]}  Nxd4 {[%clk 0:00:34]} 26. Nxd4 {[%clk 0:00:17]}  Ba2 {[%clk 0:00:32]} 27. Ra1 {[%clk 0:00:16]}  Rxb2 {[%clk 0:00:31]} 28. Rxa2 {[%clk 0:00:16]}  Rxa2 {[%clk 0:00:17]} 29. Rxa2 {[%clk 0:00:16]}  Qb6 {[%clk 0:00:17]} 30. Re2 {[%clk 0:00:13]}  hxg5 {[%clk 0:00:15]} 31. Bxg5 {[%clk 0:00:13]}  Nc6 {[%clk 0:00:15]} 32. hxg6+ {[%clk 0:00:12]}  fxg6 {[%clk 0:00:15]} 33. Qh3+ {[%clk 0:00:13]}  Kg8 {[%clk 0:00:13]} 34. Qxe6+ {[%clk 0:00:13]}  Kh7 {[%clk 0:00:13]} 35. Qxc6 {[%clk 0:00:13]}  Qxc6 {[%clk 0:00:14]} 36. Nxc6 {[%clk 0:00:13]}  Ra8 {[%clk 0:00:12]} 1-0


[Site "https://www.chess.com"]

[Event "Titled Tuesday Blitz May 2 Early 2023"]
[White "Mirzoev, Azer"]
[Black "Bogaudinov, Rushan"]
[WhiteFideId "13400304"]
[BlackFideId "4129288"]
[WhiteElo "2525"]
[BlackElo "1967"]
[Result "1-0"]
[Round "08"]
[TimeControl "180+2"]
[Date "2023.05.02"]
[WhiteClock "0:00:05"]
[BlackClock "0:00:01"]

1. c4 {[%clk 0:03:00]}  g6 {[%clk 0:02:57]} 2. Nc3 {[%clk 0:02:59]}  Bg7 {[%clk 0:02:58]} 3. d4 {[%clk 0:02:59]}  Nf6 {[%clk 0:02:58]} 4. e4 {[%clk 0:02:58]}  d6 {[%clk 0:02:58]} 5. Bg5 {[%clk 0:02:58]}  O-O {[%clk 0:02:58]} 6. Qd2 {[%clk 0:02:58]}  Nbd7 {[%clk 0:02:59]} 7. f3 {[%clk 0:02:54]}  c5 {[%clk 0:02:58]} 8. d5 {[%clk 0:02:54]}  a6 {[%clk 0:02:58]} 9. Nh3 {[%clk 0:02:53]}  b5 {[%clk 0:02:57]} 10. cxb5 {[%clk 0:02:53]}  axb5 {[%clk 0:02:58]} 11. Bxb5 {[%clk 0:02:52]}  Ba6 {[%clk 0:02:59]} 12. Bxa6 {[%clk 0:02:49]}  Rxa6 {[%clk 0:02:59]} 13. Nf2 {[%clk 0:02:49]}  Qb6 {[%clk 0:02:56]} 14. O-O {[%clk 0:02:47]}  Rb8 {[%clk 0:02:53]} 15. Rab1 {[%clk 0:02:45]}  Ne5 {[%clk 0:02:52]} 16. Qe2 {[%clk 0:02:39]}  h6 {[%clk 0:02:48]} 17. Bd2 {[%clk 0:02:35]}  c4 {[%clk 0:02:32]} 18. Be3 {[%clk 0:02:32]}  Qc7 {[%clk 0:02:32]} 19. Bd4 {[%clk 0:02:30]}  g5 {[%clk 0:02:19]} 20. Rfd1 {[%clk 0:02:29]}  Nfd7 {[%clk 0:02:19]} 21. Rbc1 {[%clk 0:02:22]}  Raa8 {[%clk 0:01:58]} 22. Rc2 {[%clk 0:02:21]}  Rb7 {[%clk 0:01:57]} 23. g3 {[%clk 0:02:15]}  Rab8 {[%clk 0:01:52]} 24. Kg2 {[%clk 0:02:13]}  Qa5 {[%clk 0:01:51]} 25. Rdd2 {[%clk 0:02:05]}  Kh7 {[%clk 0:01:45]} 26. Nfd1 {[%clk 0:01:57]}  Rc8 {[%clk 0:01:36]} 27. Ne3 {[%clk 0:01:55]}  Bf6 {[%clk 0:01:27]} 28. Nf5 {[%clk 0:01:53]}  Nf8 {[%clk 0:01:26]} 29. h4 {[%clk 0:01:45]}  gxh4 {[%clk 0:01:25]} 30. f4 {[%clk 0:01:43]}  Ned7 {[%clk 0:01:17]} 31. Bxf6 {[%clk 0:01:36]}  Nxf6 {[%clk 0:01:15]} 32. Nxh4 {[%clk 0:01:36]}  Ng6 {[%clk 0:01:07]} 33. Nf5 {[%clk 0:01:34]}  h5 {[%clk 0:01:02]} 34. Qf3 {[%clk 0:01:26]}  Ng4 {[%clk 0:00:59]} 35. Kh1 {[%clk 0:01:13]}  Qc5 {[%clk 0:00:57]} 36. Rh2 {[%clk 0:01:05]}  Nf6 {[%clk 0:00:50]} 37. Rxh5+ {[%clk 0:01:03]}  Kg8 {[%clk 0:00:49]} 38. Rh6 {[%clk 0:00:53]}  Rcb8 {[%clk 0:00:41]} 39. Qg2 {[%clk 0:00:45]}  Nxe4 {[%clk 0:00:27]} 40. Nxe4 {[%clk 0:00:38]}  Qb4 {[%clk 0:00:23]} 41. Kh2 {[%clk 0:00:32]}  Qe1 {[%clk 0:00:22]} 42. Ng5 {[%clk 0:00:27]}  c3 {[%clk 0:00:19]} 43. bxc3 {[%clk 0:00:25]}  Rb1 {[%clk 0:00:19]} 44. Nf3 {[%clk 0:00:20]}  Qd1 {[%clk 0:00:18]} 45. Rxg6+ {[%clk 0:00:20]}  fxg6 {[%clk 0:00:18]} 46. Ne3 {[%clk 0:00:20]}  Qd3 {[%clk 0:00:17]} 47. Ng4 {[%clk 0:00:19]}  Ra1 {[%clk 0:00:16]} 48. Rd2 {[%clk 0:00:18]}  Qf5 {[%clk 0:00:16]} 49. Ne3 {[%clk 0:00:17]}  Qh5+ {[%clk 0:00:15]} 50. Nh4 {[%clk 0:00:17]}  Rbb1 {[%clk 0:00:14]} 51. Qe4 {[%clk 0:00:16]}  Rh1+ {[%clk 0:00:14]} 52. Qxh1 {[%clk 0:00:16]}  Rxh1+ {[%clk 0:00:14]} 53. Kxh1 {[%clk 0:00:16]}  g5 {[%clk 0:00:14]} 54. fxg5 {[%clk 0:00:16]}  Qxg5 {[%clk 0:00:15]} 55. Nf1 {[%clk 0:00:16]}  Qe5 {[%clk 0:00:12]} 56. Kh2 {[%clk 0:00:16]}  Qxc3 {[%clk 0:00:12]} 57. Rf2 {[%clk 0:00:15]}  Qc4 {[%clk 0:00:12]} 58. Ne3 {[%clk 0:00:15]}  Qd4 {[%clk 0:00:11]} 59. Nhf5 {[%clk 0:00:14]}  Qh8+ {[%clk 0:00:09]} 60. Kg2 {[%clk 0:00:14]}  Qf6 {[%clk 0:00:09]} 61. a4 {[%clk 0:00:13]}  Qe5 {[%clk 0:00:06]} 62. a5 {[%clk 0:00:13]}  Qe4+ {[%clk 0:00:04]} 63. Kh2 {[%clk 0:00:13]}  e6 {[%clk 0:00:04]} 64. dxe6 {[%clk 0:00:12]}  Qxe6 {[%clk 0:00:04]} 65. a6 {[%clk 0:00:12]}  d5 {[%clk 0:00:04]} 66. a7 {[%clk 0:00:08]}  Qa6 {[%clk 0:00:04]} 67. Nxd5 {[%clk 0:00:08]}  Qxa7 {[%clk 0:00:03]} 68. Nfe7+ {[%clk 0:00:08]}  Kg7 {[%clk 0:00:03]} 69. Rf4 {[%clk 0:00:08]}  Qd7 {[%clk 0:00:03]} 70. Re4 {[%clk 0:00:07]}  Kf7 {[%clk 0:00:03]} 71. Rf4+ {[%clk 0:00:07]}  Kg7 {[%clk 0:00:03]} 72. Rf2 {[%clk 0:00:06]}  Qg4 {[%clk 0:00:02]} 73. Nf5+ {[%clk 0:00:06]}  Kg8 {[%clk 0:00:01]} 74. Nde3 {[%clk 0:00:06]}  Qh5+ {[%clk 0:00:01]} 75. Kg2 {[%clk 0:00:07]}  Qe8 {[%clk 0:00:01]} 76. g4 {[%clk 0:00:06]}  Qa8+ {[%clk 0:00:02]} 77. Kg3 {[%clk 0:00:06]}  Qb8+ {[%clk 0:00:03]} 78. Rf4 {[%clk 0:00:06]}  Kh7 {[%clk 0:00:02]} 79. g5 {[%clk 0:00:06]}  Kg6 {[%clk 0:00:02]} 80. Kg4 {[%clk 0:00:05]}  Qh8 {[%clk 0:00:01]} 81. Nh4+ {[%clk 0:00:05]} 1-0


[Site "https://www.chess.com"]

[Event "Titled Tuesday Blitz May 2 Early 2023"]
[White "Kim, Sergey"]
[Black "Manon-og, Ramon Jr."]
[WhiteFideId "13700570"]
[BlackFideId "5200776"]
[WhiteElo "2295"]
[BlackElo "1999"]
[Result "1-0"]
[Round "08"]
[TimeControl "180+2"]
[Date "2023.05.02"]
[WhiteClock "0:00:44"]
[BlackClock "0:00:13"]

1. d4 {[%clk 0:03:00]}  Nf6 {[%clk 0:02:54]} 2. c4 {[%clk 0:03:01]}  g6 {[%clk 0:02:54]} 3. Nc3 {[%clk 0:03:01]}  d5 {[%clk 0:02:55]} 4. cxd5 {[%clk 0:03:00]}  Nxd5 {[%clk 0:02:56]} 5. e4 {[%clk 0:03:00]}  Nxc3 {[%clk 0:02:56]} 6. bxc3 {[%clk 0:03:00]}  c5 {[%clk 0:02:57]} 7. Bc4 {[%clk 0:03:00]}  Bg7 {[%clk 0:02:58]} 8. Ne2 {[%clk 0:03:00]}  O-O {[%clk 0:02:58]} 9. O-O {[%clk 0:03:00]}  Nc6 {[%clk 0:02:57]} 10. Be3 {[%clk 0:03:00]}  Bg4 {[%clk 0:02:58]} 11. f3 {[%clk 0:02:59]}  Na5 {[%clk 0:02:57]} 12. Bd3 {[%clk 0:02:59]}  Be6 {[%clk 0:02:57]} 13. Qd2 {[%clk 0:02:59]}  cxd4 {[%clk 0:02:56]} 14. cxd4 {[%clk 0:02:59]}  Nc4 {[%clk 0:02:56]} 15. Bxc4 {[%clk 0:02:59]}  Bxc4 {[%clk 0:02:57]} 16. Rfd1 {[%clk 0:02:59]}  Rc8 {[%clk 0:02:55]} 17. Ng3 {[%clk 0:02:59]}  b6 {[%clk 0:02:47]} 18. Bh6 {[%clk 0:02:59]}  Qd6 {[%clk 0:02:41]} 19. Bxg7 {[%clk 0:02:58]}  Kxg7 {[%clk 0:02:42]} 20. Qg5 {[%clk 0:02:58]}  Kh8 {[%clk 0:02:33]} 21. e5 {[%clk 0:02:53]}  Qc6 {[%clk 0:02:26]} 22. Qxe7 {[%clk 0:02:50]}  Kg8 {[%clk 0:02:19]} 23. Ne4 {[%clk 0:02:48]}  Rc7 {[%clk 0:02:07]} 24. Qg5 {[%clk 0:02:41]}  Kg7 {[%clk 0:02:01]} 25. h4 {[%clk 0:02:37]}  h6 {[%clk 0:01:57]} 26. Qf4 {[%clk 0:02:37]}  Qe6 {[%clk 0:01:50]} 27. Nf6 {[%clk 0:02:32]}  Rd8 {[%clk 0:01:40]} 28. Rd2 {[%clk 0:02:28]}  b5 {[%clk 0:01:39]} 29. Rad1 {[%clk 0:02:25]}  a5 {[%clk 0:01:39]} 30. d5 {[%clk 0:02:24]}  Qf5 {[%clk 0:01:39]} 31. Qxf5 {[%clk 0:02:20]}  gxf5 {[%clk 0:01:40]} 32. d6 {[%clk 0:02:03]}  Rc6 {[%clk 0:01:36]} 33. Nd5 {[%clk 0:01:39]}  b4 {[%clk 0:01:34]} 34. Ne7 {[%clk 0:01:38]}  Rc5 {[%clk 0:01:27]} 35. Nxf5+ {[%clk 0:01:35]}  Kh7 {[%clk 0:01:26]} 36. f4 {[%clk 0:01:34]}  a4 {[%clk 0:01:23]} 37. Ne3 {[%clk 0:01:34]}  Be6 {[%clk 0:01:17]} 38. f5 {[%clk 0:01:26]}  Bc8 {[%clk 0:01:12]} 39. Rd5 {[%clk 0:01:21]}  Rc3 {[%clk 0:01:11]} 40. Kf2 {[%clk 0:01:17]}  Ra3 {[%clk 0:00:58]} 41. d7 {[%clk 0:01:14]}  Rxa2+ {[%clk 0:00:52]} 42. Kg3 {[%clk 0:01:11]}  Rg8+ {[%clk 0:00:48]} 43. Kf4 {[%clk 0:01:10]}  Rf2+ {[%clk 0:00:46]} 44. Ke4 {[%clk 0:01:09]}  Bb7 {[%clk 0:00:47]} 45. e6 {[%clk 0:01:06]}  fxe6 {[%clk 0:00:47]} 46. fxe6 {[%clk 0:01:06]}  a3 {[%clk 0:00:38]} 47. e7 {[%clk 0:01:05]}  b3 {[%clk 0:00:21]} 48. e8=Q {[%clk 0:01:00]}  Bxd5+ {[%clk 0:00:18]} 49. Kxd5 {[%clk 0:00:59]}  a2 {[%clk 0:00:13]} 50. Qxg8+ {[%clk 0:00:55]}  Kxg8 {[%clk 0:00:14]} 51. d8=Q+ {[%clk 0:00:55]}  Kg7 {[%clk 0:00:14]} 52. Qe7+ {[%clk 0:00:52]}  Rf7 {[%clk 0:00:14]} 53. Nf5+ {[%clk 0:00:44]}  Kg6 {[%clk 0:00:13]} 54. h5+ {[%clk 0:00:44]} 1-0


[Site "https://www.chess.com"]

[Event "Titled Tuesday Blitz May 2 Early 2023"]
[White "Nikologorskiy, Konstantin"]
[Black "Arnold, Ken"]
[WhiteFideId "24111708"]
[BlackFideId "2056836"]
[WhiteElo "2293"]
[BlackElo "2355"]
[Result "1-0"]
[Round "08"]
[TimeControl "180+2"]
[Date "2023.05.02"]
[WhiteClock "0:02:45"]
[BlackClock "0:02:20"]

1. d4 {[%clk 0:02:57]}  Nf6 {[%clk 0:02:59]} 2. c4 {[%clk 0:02:56]}  e6 {[%clk 0:03:00]} 3. Nf3 {[%clk 0:02:56]}  b6 {[%clk 0:03:00]} 4. g3 {[%clk 0:02:56]}  Bb7 {[%clk 0:03:00]} 5. Bg2 {[%clk 0:02:57]}  Be7 {[%clk 0:03:00]} 6. O-O {[%clk 0:02:56]}  O-O {[%clk 0:03:00]} 7. Nc3 {[%clk 0:02:56]}  d5 {[%clk 0:03:01]} 8. Ne5 {[%clk 0:02:55]}  Nbd7 {[%clk 0:03:00]} 9. cxd5 {[%clk 0:02:55]}  exd5 {[%clk 0:02:59]} 10. Qa4 {[%clk 0:02:55]}  Nxe5 {[%clk 0:02:51]} 11. dxe5 {[%clk 0:02:56]}  Ne4 {[%clk 0:02:50]} 12. Nxe4 {[%clk 0:02:55]}  dxe4 {[%clk 0:02:50]} 13. Bxe4 {[%clk 0:02:56]}  b5 {[%clk 0:02:39]} 14. Qc2 {[%clk 0:02:55]}  Bxe4 {[%clk 0:02:34]} 15. Qxe4 {[%clk 0:02:56]}  c5 {[%clk 0:02:34]} 16. Bf4 {[%clk 0:02:54]}  Qb6 {[%clk 0:02:34]} 17. Rfd1 {[%clk 0:02:53]}  Rfd8 {[%clk 0:02:33]} 18. h4 {[%clk 0:02:53]}  h6 {[%clk 0:02:31]} 19. a4 {[%clk 0:02:48]}  Rd4 {[%clk 0:02:20]} 20. Qxa8+ {[%clk 0:02:45]} 1-0


[Site "https://www.chess.com"]

[Event "Titled Tuesday Blitz May 2 Early 2023"]
[White "Tymrakiewicz, Rafal"]
[Black "Allahverdiyeva, Ayan"]
[WhiteFideId "1108832"]
[BlackFideId "13412590"]
[WhiteElo "2151"]
[BlackElo "1980"]
[Result "0-1"]
[Round "08"]
[TimeControl "180+2"]
[Date "2023.05.02"]
[WhiteClock "0:00:01"]
[BlackClock "0:00:05"]

1. e4 {[%clk 0:03:00]}  c5 {[%clk 0:02:51]} 2. d4 {[%clk 0:02:59]}  cxd4 {[%clk 0:02:50]} 3. c3 {[%clk 0:02:58]}  dxc3 {[%clk 0:02:50]} 4. Nxc3 {[%clk 0:02:57]}  d6 {[%clk 0:02:20]} 5. Nf3 {[%clk 0:02:56]}  Bg4 {[%clk 0:02:17]} 6. Bc4 {[%clk 0:02:56]}  Bxf3 {[%clk 0:02:17]} 7. Qxf3 {[%clk 0:02:41]}  Nf6 {[%clk 0:02:15]} 8. O-O {[%clk 0:02:41]}  Nc6 {[%clk 0:02:15]} 9. Bf4 {[%clk 0:02:36]}  e5 {[%clk 0:02:11]} 10. Be3 {[%clk 0:02:33]}  Be7 {[%clk 0:02:11]} 11. Rfd1 {[%clk 0:02:30]}  O-O {[%clk 0:02:11]} 12. g4 {[%clk 0:02:30]}  Qd7 {[%clk 0:02:03]} 13. h3 {[%clk 0:02:29]}  h6 {[%clk 0:01:49]} 14. Kh2 {[%clk 0:02:24]}  a6 {[%clk 0:01:48]} 15. Rd2 {[%clk 0:02:20]}  Na5 {[%clk 0:01:45]} 16. Bd3 {[%clk 0:02:12]}  Rac8 {[%clk 0:01:42]} 17. Rg1 {[%clk 0:02:07]}  Nc4 {[%clk 0:01:37]} 18. Bxc4 {[%clk 0:02:02]}  Rxc4 {[%clk 0:01:36]} 19. h4 {[%clk 0:02:03]}  Qc6 {[%clk 0:01:06]} 20. Nd5 {[%clk 0:01:59]}  Nxd5 {[%clk 0:01:06]} 21. exd5 {[%clk 0:02:00]}  Qd7 {[%clk 0:01:03]} 22. b3 {[%clk 0:01:45]}  Rb4 {[%clk 0:00:55]} 23. Rc2 {[%clk 0:01:22]}  Bxh4 {[%clk 0:00:53]} 24. Rc4 {[%clk 0:01:04]}  Rxc4 {[%clk 0:00:51]} 25. bxc4 {[%clk 0:01:05]}  Bf6 {[%clk 0:00:36]} 26. Qe4 {[%clk 0:01:02]}  g6 {[%clk 0:00:32]} 27. Bxh6 {[%clk 0:01:01]}  Rc8 {[%clk 0:00:32]} 28. Rg3 {[%clk 0:00:56]}  Qa4 {[%clk 0:00:31]} 29. Rf3 {[%clk 0:00:53]}  Rxc4 {[%clk 0:00:28]} 30. Qe2 {[%clk 0:00:27]}  Rxg4 {[%clk 0:00:26]} 31. Rxf6 {[%clk 0:00:23]}  Rh4+ {[%clk 0:00:26]} 32. Kg3 {[%clk 0:00:23]}  Rxh6 {[%clk 0:00:27]} 33. Qg4 {[%clk 0:00:20]}  Qa3+ {[%clk 0:00:18]} 34. f3 {[%clk 0:00:20]}  Qe3 {[%clk 0:00:18]} 35. Kg2 {[%clk 0:00:02]}  Qe2+ {[%clk 0:00:16]} 36. Kg1 {[%clk 0:00:03]}  Qh2+ {[%clk 0:00:16]} 37. Kf1 {[%clk 0:00:03]}  Qh1+ {[%clk 0:00:16]} 38. Qg1 {[%clk 0:00:02]}  Qh3+ {[%clk 0:00:13]} 39. Qg2 {[%clk 0:00:03]}  Qd7 {[%clk 0:00:11]} 40. Kf2 {[%clk 0:00:03]}  Kg7 {[%clk 0:00:09]} 41. Qg5 {[%clk 0:00:02]}  Qa4 {[%clk 0:00:06]} 42. Kg3 {[%clk 0:00:01]}  Qd4 {[%clk 0:00:05]} 0-1


[Site "https://www.chess.com"]

[Event "Titled Tuesday Blitz May 2 Early 2023"]
[White "Shubenkova, Veronika"]
[Black "Adithya A Chullikkad"]
[WhiteFideId "44124040"]
[BlackFideId "45078734"]
[WhiteElo "2027"]
[BlackElo "1984"]
[Result "0-1"]
[Round "08"]
[TimeControl "180+2"]
[Date "2023.05.02"]
[WhiteClock "0:00:15"]
[BlackClock "0:00:12"]

1. d4 {[%clk 0:03:00]}  d5 {[%clk 0:02:57]} 2. e3 {[%clk 0:03:00]}  Nf6 {[%clk 0:02:57]} 3. Nf3 {[%clk 0:02:59]}  e6 {[%clk 0:02:57]} 4. c4 {[%clk 0:02:57]}  Bd6 {[%clk 0:02:58]} 5. cxd5 {[%clk 0:02:56]}  exd5 {[%clk 0:02:56]} 6. Bd3 {[%clk 0:02:56]}  O-O {[%clk 0:02:56]} 7. Nc3 {[%clk 0:02:56]}  c6 {[%clk 0:02:56]} 8. Qc2 {[%clk 0:02:55]}  Bg4 {[%clk 0:02:52]} 9. Bd2 {[%clk 0:02:52]}  Bh5 {[%clk 0:02:50]} 10. h3 {[%clk 0:02:48]}  Na6 {[%clk 0:02:49]} 11. g4 {[%clk 0:02:48]}  Nb4 {[%clk 0:02:49]} 12. Qb1 {[%clk 0:02:43]}  Nxd3+ {[%clk 0:02:49]} 13. Qxd3 {[%clk 0:02:44]}  Bg6 {[%clk 0:02:50]} 14. Qe2 {[%clk 0:02:44]}  Ne4 {[%clk 0:02:48]} 15. h4 {[%clk 0:02:38]}  Nxd2 {[%clk 0:02:47]} 16. Qxd2 {[%clk 0:02:39]}  Bb4 {[%clk 0:02:47]} 17. Ne5 {[%clk 0:02:38]}  Qa5 {[%clk 0:02:38]} 18. h5 {[%clk 0:02:33]}  Be4 {[%clk 0:02:38]} 19. f3 {[%clk 0:02:32]}  f6 {[%clk 0:02:39]} 20. Nd7 {[%clk 0:02:10]}  Bxf3 {[%clk 0:02:38]} 21. Rf1 {[%clk 0:02:10]}  Rf7 {[%clk 0:02:38]} 22. Rxf3 {[%clk 0:02:03]}  Rxd7 {[%clk 0:02:37]} 23. h6 {[%clk 0:02:03]}  Re8 {[%clk 0:02:32]} 24. hxg7 {[%clk 0:02:01]}  Rde7 {[%clk 0:02:28]} 25. Kf2 {[%clk 0:01:56]}  Kxg7 {[%clk 0:02:18]} 26. Rh1 {[%clk 0:01:53]}  Bxc3 {[%clk 0:02:05]} 27. bxc3 {[%clk 0:01:52]}  Re4 {[%clk 0:02:05]} 28. Qb2 {[%clk 0:01:43]}  Qb6 {[%clk 0:01:55]} 29. Qa3 {[%clk 0:01:35]}  Rxg4 {[%clk 0:01:38]} 30. Rfh3 {[%clk 0:01:28]}  Kf7 {[%clk 0:01:02]} 31. Rxh7+ {[%clk 0:01:24]}  Ke6 {[%clk 0:01:02]} 32. Kf3 {[%clk 0:01:09]}  Rg5 {[%clk 0:00:52]} 33. e4 {[%clk 0:00:47]}  Qb5 {[%clk 0:00:48]} 34. c4 {[%clk 0:00:33]}  dxe4+ {[%clk 0:00:42]} 35. Ke3 {[%clk 0:00:23]}  Rg3+ {[%clk 0:00:18]} 36. Kf2 {[%clk 0:00:18]}  Qf5+ {[%clk 0:00:17]} 37. Kxg3 {[%clk 0:00:18]}  Rg8+ {[%clk 0:00:17]} 38. Kh2 {[%clk 0:00:17]}  Qf4+ {[%clk 0:00:12]} 39. Kh3 {[%clk 0:00:16]}  Qg4+ {[%clk 0:00:12]} 40. Kh2 {[%clk 0:00:15]}  Qg2# {[%clk 0:00:12]} 0-1


[Site "https://www.chess.com"]

[Event "Titled Tuesday Blitz May 2 Early 2023"]
[White "Melikhov, Evgeny V."]
[Black "Jiganchine, Roman"]
[WhiteFideId "4122046"]
[BlackFideId "2603667"]
[WhiteElo "2158"]
[BlackElo "2205"]
[Result "1-0"]
[Round "08"]
[TimeControl "180+2"]
[Date "2023.05.02"]
[WhiteClock "0:01:10"]
[BlackClock "0:00:02"]

1. d4 {[%clk 0:03:00]}  Nf6 {[%clk 0:02:51]} 2. c4 {[%clk 0:03:00]}  e6 {[%clk 0:02:51]} 3. Nc3 {[%clk 0:03:00]}  d5 {[%clk 0:02:51]} 4. cxd5 {[%clk 0:03:00]}  Nxd5 {[%clk 0:02:51]} 5. e4 {[%clk 0:03:00]}  Nxc3 {[%clk 0:02:47]} 6. bxc3 {[%clk 0:03:01]}  c5 {[%clk 0:02:48]} 7. Nf3 {[%clk 0:03:00]}  cxd4 {[%clk 0:02:47]} 8. cxd4 {[%clk 0:03:01]}  Bb4+ {[%clk 0:02:46]} 9. Bd2 {[%clk 0:03:01]}  Bxd2+ {[%clk 0:02:46]} 10. Qxd2 {[%clk 0:03:02]}  O-O {[%clk 0:02:46]} 11. Bd3 {[%clk 0:03:02]}  Nd7 {[%clk 0:02:46]} 12. O-O {[%clk 0:03:01]}  b6 {[%clk 0:02:45]} 13. Rfe1 {[%clk 0:02:59]}  Bb7 {[%clk 0:02:45]} 14. Rad1 {[%clk 0:02:59]}  Qe7 {[%clk 0:02:35]} 15. Qf4 {[%clk 0:02:27]}  Rfe8 {[%clk 0:02:27]} 16. e5 {[%clk 0:02:26]}  Rac8 {[%clk 0:02:10]} 17. Ng5 {[%clk 0:02:24]}  h6 {[%clk 0:02:01]} 18. Ne4 {[%clk 0:02:23]}  Bxe4 {[%clk 0:01:55]} 19. Qxe4 {[%clk 0:02:23]}  g6 {[%clk 0:01:55]} 20. h4 {[%clk 0:02:18]}  Kg7 {[%clk 0:01:38]} 21. h5 {[%clk 0:02:11]}  Nf8 {[%clk 0:01:37]} 22. Re3 {[%clk 0:02:01]}  Rc3 {[%clk 0:01:23]} 23. Rg3 {[%clk 0:01:57]}  g5 {[%clk 0:00:49]} 24. f4 {[%clk 0:01:43]}  Rd8 {[%clk 0:00:37]} 25. fxg5 {[%clk 0:01:42]}  hxg5 {[%clk 0:00:36]} 26. Rf1 {[%clk 0:01:26]}  Qb4 {[%clk 0:00:13]} 27. Rf6 {[%clk 0:01:21]}  Qxd4+ {[%clk 0:00:08]} 28. Qxd4 {[%clk 0:01:20]}  Rxd4 {[%clk 0:00:08]} 29. Rxg5+ {[%clk 0:01:21]}  Ng6 {[%clk 0:00:06]} 30. Bxg6 {[%clk 0:01:15]}  fxg6 {[%clk 0:00:05]} 31. Rgxg6+ {[%clk 0:01:13]}  Kh7 {[%clk 0:00:05]} 32. h6 {[%clk 0:01:10]}  Rc1+ {[%clk 0:00:04]} 33. Kh2 {[%clk 0:01:10]}  Rh4+ {[%clk 0:00:04]} 34. Kg3 {[%clk 0:01:10]}  Rch1 {[%clk 0:00:02]} 35. Rg7+ {[%clk 0:01:10]}  Kh8 {[%clk 0:00:02]} 36. Rf8# {[%clk 0:01:10]} 1-0


[Site "https://www.chess.com"]